Cogmind - Beta 17 @@@ ROGUE MODE // 2026.07.25 @ 11:08:40 Player: oskarw Result: Destroyed self with Heavy Rocket Launcher Performance ------------- Evolutions (3) 1500 Regions Visited (7) 1400 Robots Destroyed (60) 300 Value Destroyed (2165) 2165 Prototype IDs (27) 540 Alien Tech Used (0) 0 Bonus (300) 300 TOTAL SCORE: 6205 Bonus ------- Aligned with FarCom 300 Cogmind --------- Core Integrity 0/700 Matter 218/300 Energy 16/100 System Corruption 19% Temperature Hot (252) Movement Flying (135) Ox1 Location -7/Lower Caves Parts ------- > --- POWER (1) -------- (None) > --- PROPULSION (4) --- Armored Treads Cesium-ion Thruster > --- UTILITY (6) ------ Advanced Weight Redist. System Improved Transmission Jammer ECM Suite Improved Utility Shielding Makeshift Weapon Shielding Improved Medium Armor Plating > --- WEAPON (2) ------- Proton Missile Launcher Heavy Rocket Launcher > --- INVENTORY (5) ---- Large Storage Unit Weapon Cycler High-powered Shotgun Improved Datajack Peak State ------------ > --- POWER ------------ Light Nuclear Core > --- PROPULSION ------- Potential Leg Potential Leg Cesium-ion Thruster > --- UTILITY ---------- Advanced Heat Sink Large Storage Unit Improved Sensor Array Improved Signal Interpreter Improved Transmission Jammer Improved Light Armor Plating > --- WEAPON ----------- Plasma Cannon Heavy Machine Gun > --- INVENTORY -------- Light Angular Momentum Engine Advanced Weight Redist. System Improved Terrain Scanner Weapon Cycler Improved Transmission Jammer Shock Absorption System Shield Generator Corruption Screen Ion Cannon Heavy Machine Gun Proton Missile Launcher Proton Missile Launcher Heavy Rocket Launcher [Rating: 61] Favorites ----------- Power Light Ion Engine Engine Light Ion Engine Power Core Light Nuclear Core Propulsion Aluminum Leg Treads Armored Treads Leg Aluminum Leg Flight Unit Cesium-ion Thruster Utility Large Storage Unit Device Improved Heat Sink Storage Large Storage Unit Processor Advanced Terrain Scan Processor Hackware System Shield Protection Hardened Medium Armor Plating Weapon Medium Laser Energy Gun Medium Laser Energy Cannon Ion Cannon Ballistic Gun Heavy Machine Gun Ballistic Cannon Advanced Assault Cannon Launcher Proton Missile Launcher Slashing Weapon Great Axe Special Melee Weapon Improved Datajack Build | -11 -10 -10 -10 -9 -8 -7 -7 ------- Run | Yrd Mat Min Exi Min Mat Fac Low Slots Evolved 6 | . . . . . 4 2 . Power . | . . . . . . . . Propulsion 2 | . . . . . 2 . . Utility 4 | . . . . . 2 2 . Weapon . | . . . . . . . . Parts Attached 77 | 5 2 1 3 4 14 33 15 Power 9 | . 1 . . 1 4 3 . Engine 5 | . 1 . . 1 1 2 . Core 4 | . . . . . 3 1 . Reactor . | . . . . . . . . Propulsion 11 | 2 . . 2 . . 4 3 Treads 1 | . . . . . . . 1 Leg 7 | 2 . . 2 . . 3 . Wheel . | . . . . . . . . Hover . | . . . . . . . . Flight 3 | . . . . . . 1 2 Utility 35 | 1 1 1 1 1 5 17 8 Device 16 | . 1 1 . . 2 8 4 Storage 3 | 1 . . 1 . 1 . . Processor 5 | . . . . 1 . 3 1 Hackware 2 | . . . . . 1 1 . Protection 9 | . . . . . 1 5 3 Artifact . | . . . . . . . . Weapon 22 | 2 . . . 2 5 9 4 Energy Gun 6 | 2 . . . . 3 1 . Energy Cannon 3 | . . . . . . 3 . Ballistic Gun 6 | . . . . 2 1 1 2 Ballistic Cannon 2 | . . . . . 1 1 . Launcher 3 | . . . . . . 2 1 Special Weapon . | . . . . . . . . Impact Weapon . | . . . . . . . . Slashing Weapon 1 | . . . . . . 1 . Piercing Weapon . | . . . . . . . . Special Melee Weapon 1 | . . . . . . . 1 Unidentified Prototypes 2 | . . . . . 2 . . Parts Lost 30 | . . . . . 2 23 5 Power 4 | . . . . . 1 2 1 Propulsion 8 | . . . . . . 5 3 Utility 13 | . . . . . . 13 . Weapon 5 | . . . . . 1 3 1 Highest Loss Streak 8 | . . . . . 2 6 8 To Critical Strikes 1 | . . . . . . 1 . Average Backups 11 | 3 6 8 8 9 12 13 6 Power 1 | . 1 2 2 1 . . . Propulsion 2 | 2 4 3 3 3 1 1 . Utility 5 | . . 1 2 4 7 7 2 Weapon 2 | . 1 1 1 1 2 3 2 Tool/Special . | . . . . . . . . Unused Backups 18 | . . 2 2 1 3 10 . Power 1 | . . . . 1 . . . Propulsion 5 | . . 2 2 . . 1 . Utility 8 | . . . . . 3 5 . Weapon 3 | . . . . . . 3 . Tool/Special 1 | . . . . . . 1 . Average Slot Usage (%) 94 | . 98 100 100 100 94 92 85 Engine 8 | . 14 14 14 14 1 5 5 Core 1 | . . . . . 7 1 1 Leg 26 | . 28 28 28 28 33 26 . Flight 1 | . . . . . . . 15 Device 13 | . 12 14 14 5 13 12 18 Storage 9 | . 14 14 14 14 9 7 1 Processor 3 | . . . . 8 1 4 16 Hackware 4 | . . . . . 6 8 . Protection 4 | . . . . . 1 8 5 Energy Gun 11 | . 28 28 28 15 12 . . Energy Cannon 2 | . . . . . . 6 2 Ballistic Gun 1 | . . . . 12 3 1 4 Ballistic Cannon 2 | . . . . . 1 4 . Peak Build Rating 61 | 5 8 10 28 29 45 61 46 Average Rating 35 | 3 7 8 11 28 40 53 38 On Entrance 20 | . 5 8 10 28 28 45 36 Avg Prop Armor Cover (%) 12 | . . . . . . 2 14 Naked Turns . | . . . . . . . . Heaviest Build 62 | 9 13 13 18 19 42 62 39 Greatest Support 80 | 20 20 20 60 60 80 80 24 Greatest Overweight (x) 3 | 1 . . . . . 1 3 Average Overweight (x) . | . . . . . . . . Largest Inventory Capacity 15 | 8 8 8 10 10 15 15 15 Average Capacity 11 | 7 8 8 8 10 14 15 6 Most Carried 15 | 7 8 8 10 10 15 15 12 Average Carried 11 | 3 6 7 8 9 12 13 5 Final Capacity 15 | 8 8 8 10 10 15 15 5 Final Carried 15 | 7 8 8 10 10 15 13 4 Class Distribution -------------------- 56% | Mutant 11% | Hacker-Mutant 10% | Scavenger-Skirmisher 7% | Scavenger-Mutant 6% | Hacker-Skirmisher Dominant Class ---------------- Mutant | -10/Materials Mutant | -10/Mines Mutant | -10/Exiles Mutant | -9/Mines Mutant | -8/Materials Hacker-Mutant | -7/Factory Infiltrator-Mutant | -7/Lower Caves Resources | -11 -10 -10 -10 -9 -8 -7 -7 ----------- Run | Yrd Mat Min Exi Min Mat Fac Low Matter Collected 1814 | 155 60 50 . 141 240 866 302 Remotely . | . . . . . . . . Salvage Created 2278 | . . . . 130 589 1384 175 Parts 113 | . . . . 13 23 67 10 Haulers Intercepted 1 | . . . . . 1 . . Recyclers Shooed 2 | . . . . . 2 . . Parts Field Recycled . | . . . . . . . . Retrieved Matter . | . . . . . . . . Parts Self-Destructed 3 | . . . . . . . 3 Prevented 6 | . . . . . . . 6 Parts Restored . | . . . . . . . . Kills | -11 -10 -10 -10 -9 -8 -7 -7 ------- Run | Yrd Mat Min Exi Min Mat Fac Low Combat Hostiles Destroyed 50 | . . . . 8 10 28 4 Melee 8 | . . . . . . 8 . Guns 22 | . . . . 8 10 4 . Cannons 12 | . . . . . . 9 3 AOE 7 | . . . . . . 6 1 Classes Destroyed 14 | . . . . 1 4 9 . Builder 1 | . . . . . . 1 . Tunneler 1 | . . . . . . 1 . Hauler 1 | . . . . . 1 . . Recycler 2 | . . . . . 2 . . Operator 1 | . . . . . . 1 . Watcher 4 | . . . . . . 4 . Swarmer 22 | . . . . 8 4 7 3 Grunt 9 | . . . . . 2 7 . Brawler 4 | . . . . . . 4 . Duelist 1 | . . . . . . 1 . Sentry 6 | . . . . . 4 1 1 Specialist 3 | . . . . . . 3 . Hunter 1 | . . . . . . 1 . Programmer 4 | . . . . . . 4 . Best Kill Streak 5 | . . . . 4 5 5 3 Combat Bots Only 4 | . . . . 4 4 4 3 Max Kills in Single Turn 4 | . . . . 2 1 4 1 Gunslinging 1 | . . . . 1 . . . Exploded 3 | . . . . . . 3 1 Melee 1 | . . . . . . 1 . Uniques/NPCs Destroyed . | . . . . . . . . Combat | -11 -10 -10 -10 -9 -8 -7 -7 -------- Run | Yrd Mat Min Exi Min Mat Fac Low Hostile Shots Fired 473 | . . . . 63 63 266 81 Missed 132 | . . . . 10 16 80 26 Hits 341 | . . . . 53 47 186 55 Melee 25 | . . . . . . 25 . Projectile 316 | . . . . 53 47 161 55 Critical Strikes 21 | . . . . . 1 19 1 Actively Blocked 1 | . . . . . . . 1 Damage Taken 5535 | . . . . 424 460 3742 909 Core 833 | . . . . 46 80 455 252 Absorbed by Shields 195 | . . . . . 127 68 . Redirected to Shielding 39 | . . . . . . . 39 Regen/Repaired (Parts) 356 | . . . . . 35 321 . Core Remaining (%) 88 | 100 . . . 81 85 . . Volleys Fired 169 | . 1 . 6 19 43 88 12 Largest 2 | . 2 . 2 2 2 2 2 Hottest 149 | . 90 . 90 90 110 149 149 Shots Fired 333 | . 2 . 12 38 85 175 21 Gun 190 | . 2 . 12 38 84 50 4 Cannon 128 | . . . . . 1 119 8 Launcher 15 | . . . . . . 6 9 Special . | . . . . . . . . Kinetic 104 | . . . . 14 15 71 4 Thermal 196 | . 1 . 6 19 70 98 2 Explosive 3 | . . . . . . . 3 Electromagnetic 30 | . 1 . 6 5 . 6 12 Robot Hit Streak 19 | . 1 . . 4 17 19 6 Robot Miss Streak 11 | . 1 . . 11 3 3 2 Penetration Max . | . . . . . . . . Secondary Targets 3 | . . . . 2 1 . . Max Gunslinging Chain 1 | . . . . 1 1 . . Shots Hit Robots 209 | . 1 . . 13 57 119 19 Core Hits 93 | . . . . 8 21 57 7 Critical Kills 1 | . . . . . . 1 . Critical Parts Destroyed . | . . . . . . . . Critical Strikes 8 | . . . . . 4 4 . Burn 4 | . . . . . 4 . . Destroy 1 | . . . . . . 1 . Blast 1 | . . . . . . 1 . Sever 2 | . . . . . . 2 . Melee Attacks 44 | . . . . . . 37 7 Impact . | . . . . . . . . Slashing 37 | . . . . . . 37 . Piercing . | . . . . . . . . Sneak Attacks 2 | . . . . . . . 2 Combat Hostiles . | . . . . . . . . Follow-up Attacks . | . . . . . . . . Damage Inflicted 5797 | . 13 . . 174 1017 4244 349 Guns 1723 | . 13 . . 174 977 559 . Cannons 1828 | . . . . . 40 1664 124 Explosions 1273 | . . . . . . 1048 225 Melee 955 | . . . . . . 955 . Ramming 18 | . . . . . . 18 . Kinetic 1090 | . . . . 68 132 890 . Thermal 2515 | . 13 . . 62 885 1531 24 Explosive 532 | . . . . . . 457 75 Electromagnetic 687 | . . . . 44 . 393 250 Impact . | . . . . . . . . Slashing 955 | . . . . . . 955 . Piercing . | . . . . . . . . Highest Corruption 19 | . . . . . . 19 19 Average Corruption 10 | . . . . . . 8 19 Corruption Purged . | . . . . . . . . Corruption Blocked . | . . . . . . . . Effects 76 | . . . . . . 51 25 Message Errors 19 | . . . . . . 11 8 Matter Fused 13 | . . . . . . 8 5 Heat Flow Errors 7 | . . . . . . 6 1 Energy Discharges 8 | . . . . . . 6 2 Parts Rejected 3 | . . . . . . 3 . Parts Fused 2 | . . . . . . 2 . Data Loss (minor) 6 | . . . . . . 5 1 Data Loss (major) 6 | . . . . . . 5 1 Misfires 5 | . . . . . . 3 2 Alerts 3 | . . . . . . 1 2 Misdirections 1 | . . . . . . . 1 Weapon Failures 3 | . . . . . . 1 2 Overload Shots . | . . . . . . . . Overflow Damage 107 | . . . . . . 94 13 Projectiles 21 | . . . . . . 21 . Explosions 84 | . . . . . . 71 13 Melee 2 | . . . . . . 2 . Knockbacks 11 | . . . . . 1 10 . Impact 1 | . . . . . . 1 . Kinetic 10 | . . . . . 1 9 . Secondary . | . . . . . . . . Self-Inflicted Damage 233 | . . . . . . 101 132 Shots 9 | . . . . . . 4 5 Rammed . | . . . . . . . . Targets Rammed 3 | . . . . . . 3 . Kicked 3 | . . . . . . 3 . Crushed . | . . . . . . . . Highest Temperature 368 | . . . . 236 173 368 288 Average Temperature 94 | . . . . 117 46 104 62 Received Heat Transfer 656 | . . . . . 144 425 87 Effects 2 | . . . . . . 2 . Energy Bleed 1 | . . . . . . 1 . Interference 1 | . . . . . . 1 . Siege Activations . | . . . . . . . . Martial Activations . | . . . . . . . . Shielding Activations . | . . . . . . . . Robots Disrupted . | . . . . . . . . Combat Hostiles . | . . . . . . . . Robots Corrupted . | . . . . . . . . Combat Hostiles . | . . . . . . . . Parts Fried 1 | . . . . . . . 1 Impact Corruptions . | . . . . . . . . Robots Melted 1 | . . . . . . 1 . Combat Hostiles 1 | . . . . . . 1 . Parts Melted 15 | . . . . 1 5 9 . Heat Transferred 4772 | . 37 . . 185 2035 2465 50 Parts Sabotaged . | . . . . . . . . Parts Stolen . | . . . . . . . . Parts Stripped . | . . . . . . . . Power Chain Reactions . | . . . . . . . . Alert | -11 -10 -10 -10 -9 -8 -7 -7 ------- Run | Yrd Mat Min Exi Min Mat Fac Low Maximum Alert Level 1 | . . . . . . 1 . Low Security (%) 77 | 100 100 100 . 100 100 66 . Level 1 22 | . . . . . . 33 . Level 2 . | . . . . . . . . Level 3 . | . . . . . . . . Level 4 . | . . . . . . . . Level 5 . | . . . . . . . . High Security . | . . . . . . . . Max Security . | . . . . . . . . Peak Influence 308 | . 7 . . 105 117 308 . Initial 21 | . . . . . 21 6 . Average 107 | . . . . 61 52 139 . Influence Increases 1751 | . 7 . . 195 305 1139 105 Destroy 0b10 Robot/C 1000 | . . . . 160 200 560 80 Destroy 0b10 Robot/NC 50 | . . . . . 15 35 . Destroy Leader 230 | . . . . 20 62 138 10 Successful Hack 38 | . 7 . . . 28 3 . Disable Machine 240 | . . . . 15 . 225 . Destroy Structure 58 | . . . . . . 58 . Lose Combat Pursuer 135 | . . . . . . 120 15 Influence Decreases 1749 | . 7 . . 140 345 898 359 Entered New Map 138 | . . . . . 34 9 95 Time Decay 1326 | . 7 . . 140 306 659 214 Lost Part 285 | . . . . . 5 230 50 Squads Dispatched 15 | . 1 . . . 1 13 . Investigation 1 | . . . . . . 1 . Extermination 5 | . . . . . . 5 . Reinforcement 7 | . 1 . . . 1 5 . Assault 2 | . . . . . . 2 . Garrison . | . . . . . . . . Intercept . | . . . . . . . . Searches Triggered . | . . . . . . . . Construction Impeded . | . . . . . . . . Haulers Reinforced 1 | . . . . . . 1 . Active Scanning Responses . | . . . . . . . . Cargo Convoy Interrupts 1 | . . . . . . 1 . Stealth | -11 -10 -10 -10 -9 -8 -7 -7 --------- Run | Yrd Mat Min Exi Min Mat Fac Low Distress Signals 5 | . 1 . . . 2 2 . Communications Jammed 1 | . . . . . . 1 . Distress Signals 1 | . . . . . . 1 . Times Spotted 85 | . 2 2 . 8 16 51 6 Peak Tracking Total 7 | . 2 2 . 4 4 6 7 Tactical Retreats 8 | . . . . . . 6 2 ECM-based Alert Blocks 6 | . . . . . . . 6 Traps | -11 -10 -10 -10 -9 -8 -7 -7 ------- Run | Yrd Mat Min Exi Min Mat Fac Low Traps Triggered 6 | . . . . . 2 4 . Indirectly 1 | . . . . . . 1 . Trap Hack Attempts . | . . . . . . . . Triggered . | . . . . . . . . Disarmed . | . . . . . . . . Reprogrammed . | . . . . . . . . Reused . | . . . . . . . . Traps Extracted . | . . . . . . . . Installed . | . . . . . . . . Triggered . | . . . . . . . . Machines | -11 -10 -10 -10 -9 -8 -7 -7 ---------- Run | Yrd Mat Min Exi Min Mat Fac Low Machines Disabled 16 | . . . . 1 . 15 . Max in Single Turn 4 | . . . . 1 . 4 . Garrison Access 1 | . . . . . . 1 . Machines Repaired . | . . . . . . . . Machines Dismantled . | . . . . . . . . Machines Sabotaged . | . . . . . . . . Overloaded Fab Kills . | . . . . . . . . Hacking | -11 -10 -10 -10 -9 -8 -7 -7 --------- Run | Yrd Mat Min Exi Min Mat Fac Low Machines Accessed 23 | . 2 . 5 . 5 11 . Terminals 9 | . 2 . . . 2 5 . Fabricators 3 | . . . . . . 3 . Repair Stations 3 | . . . . . 1 2 . Recycling Units 1 | . . . . . . 1 . Scanalyzers 2 | . . . . . 2 . . Garrison Access . | . . . . . . . . Total Hacks 105 | . 2 . 50 . 21 32 . Successful 85 | . 1 . 50 . 16 18 . Failed 20 | . 1 . . . 5 14 . Catastrophic 5 | . . . . . 1 4 . Database Lockouts . | . . . . . . . . Manual 2 | . . . 1 . . 1 . Terminals 23 | . 2 . . . 7 14 . Fabricators 5 | . . . . . . 5 . Repair Stations 13 | . . . . . 3 10 . Recycling Units 3 | . . . . . . 3 . Scanalyzers 11 | . . . . . 11 . . Garrison Access . | . . . . . . . . Terminal Hacks 60 | . 1 . 50 . 4 5 . Record 50 | . . . 49 . . 1 . Robot Analysis 1 | . . . . . 1 . . Prototype ID Bank 1 | . . . . . 1 . . Open DSF 2 | . . . . . . 2 . Branch Access Points 1 | . 1 . . . . . . Emergency Access Points 2 | . . . . . 1 1 . Alert Level 1 | . . . . . . 1 . Transport Status 1 | . . . . . 1 . . Proto ID Catalog 1 | . . . 1 . . . . Fabricator Hacks 4 | . . . . . . 4 . Network Status 1 | . . . . . . 1 . Load Schematic 1 | . . . . . . 1 . Build 2 | . . . . . . 2 . Repair Station Hacks 10 | . . . . . 2 8 . Scan Component 5 | . . . . . 1 4 . Repair 5 | . . . . . 1 4 . Recycling Unit Hacks 1 | . . . . . . 1 . Report Inventory 1 | . . . . . . 1 . Scanalyzer 10 | . . . . . 10 . . Insert Component 2 | . . . . . 2 . . Analyze 2 | . . . . . 2 . . Retrieve Study 6 | . . . . . 6 . . Garrison Access Hacks . | . . . . . . . . Unauthorized Hacks . | . . . . . . . . Terminals . | . . . . . . . . Fabricators . | . . . . . . . . Repair Stations . | . . . . . . . . Recycling Units . | . . . . . . . . Scanalyzers . | . . . . . . . . Garrison Access . | . . . . . . . . Data Cores Recovered . | . . . . . . . . Used . | . . . . . . . . Hacking Detections 15 | . 1 . . . 4 10 . Full Trace Events 1 | . . . . . . 1 . Feedback Events . | . . . . . . . . Feedback Blocked . | . . . . . . . . Robot Schematics Acquired . | . . . . . . . . Robots Built . | . . . . . . . . Authchips . | . . . . . . . . Time . | . . . . . . . . Total Robot Build Rating . | . . . . . . . . Part Schematics Acquired 2 | . . . . . 2 . . Parts Built 4 | . . . . . . 4 . Authchips . | . . . . . . . . Time 157 | . . . . . . 157 . Total Part Build Rating 14 | . . . . . . 14 . Part Studies Acquired 6 | . . . . . 6 . . Parts Repaired 5 | . . . . . 1 4 . Time 154 | . . . . . 38 116 . Parts Recycled . | . . . . . . . . Recycled Matter . | . . . . . . . . Retrieved Matter . | . . . . . . . . Retrieved Components . | . . . . . . . . Parts Scanalyzed 2 | . . . . . 2 . . Part Schematics Acquired 2 | . . . . . 2 . . Parts Damaged . | . . . . . . . . Bothacking | -11 -10 -10 -10 -9 -8 -7 -7 ------------ Run | Yrd Mat Min Exi Min Mat Fac Low Used RIF Installer . | . . . . . . . . Robots Hacked 1 | . . . . . . . 1 Non-combat 1 | . . . . . . . 1 Combat . | . . . . . . . . Robot Hacks Applied 1 | . . . . . . . 1 parse_system 1 | . . . . . . . 1 Relay Couplers Released 5 | . . . . . . 5 . Machine Destruction 1 | . . . . . . 1 . Programmers 4 | . . . . . . 4 . Fabnet Peak Effective % . | . . . . . . . . Robots Rewired . | . . . . . . . . Allies Hacked . | . . . . . . . . Hacks Repelled . | . . . . . . . . Allies | -11 -10 -10 -10 -9 -8 -7 -7 -------- Run | Yrd Mat Min Exi Min Mat Fac Low Total Allies . | . . . . . . . . Largest Group . | . . . . . . . . Highest-Rated Group . | . . . . . . . . Highest-Rated Ally . | . . . . . . . . Total Orders . | . . . . . . . . Ally Attacks . | . . . . . . . . Total Damage . | . . . . . . . . Kills . | . . . . . . . . Allies Corrupted . | . . . . . . . . Allies Melted . | . . . . . . . . Intel | -11 -10 -10 -10 -9 -8 -7 -7 ------- Run | Yrd Mat Min Exi Min Mat Fac Low Active Infowar (turns) 2167 | . . . . 175 152 1660 180 Optics 327 | . . . . 175 152 . . Sensors 395 | . . . . . . 395 . Terrain 825 | . . . . . . 824 1 Jamming 933 | . . . . . . 812 121 ECM 88 | . . . . . . . 88 Robot Analysis Total 1 | . . . . . 1 . . Derelict Logs Recovered 2 | . . . . . . . 2 Drone Launches . | . . . . . . . . Drone Recoveries . | . . . . . . . . Exploration | -11 -10 -10 -10 -9 -8 -7 -7 ------------- Run | Yrd Mat Min Exi Min Mat Fac Low Turns Passed 6575 | 62 195 94 1910 282 731 2842 459 Spaces Moved 4933 | 43 157 74 1611 243 463 1736 606 Core 17 | 10 . . . . . . 7 Treads . | . . . . . . . . Legs 4317 | 33 157 74 1611 243 463 1736 . Wheels . | . . . . . . . . Hover . | . . . . . . . . Flight 599 | . . . . . . . 599 Fastest Speed 32 | 50 120 120 90 90 90 90 32 Average Speed 98 | 113 120 120 116 90 99 96 49 Slowest Speed 200 | 120 120 120 120 90 105 170 200 Overloaded Moves . | . . . . . . . . Propulsion Burnouts . | . . . . . . . . Robots Hopped . | . . . . . . . . Potential Cave-ins . | . . . . . . . . Cave-ins Triggered . | . . . . . . . . Exploration Rate (%) 44 | 4 43 30 94 43 42 39 59 Regions Visited 7 Branch Regions 4 Pre-discovered Areas 2 | . . . 1 . . . 1 Known Exits Taken 2 | . 1 . . . . 1 . Unknown Exits Taken 5 | 1 . 1 1 1 1 . . Scrap Searched 12 | . . . . 2 . . 10 Spaces Dug . | . . . . . . . . Terrain Destroyed 108 | . . . . . . 68 40 Melee . | . . . . . . . . Projectile 6 | . . . . . . 6 . AOE 102 | . . . . . . 62 40 Terrain Rammed . | . . . . . . . . Walls Destroyed . | . . . . . . . . Machines Disabled . | . . . . . . . . Actions | -11 -10 -10 -10 -9 -8 -7 -7 --------- Run | Yrd Mat Min Exi Min Mat Fac Low Total 6247 | 54 161 79 1630 271 650 2656 746 Wait 864 | . . 2 . . 95 693 74 Move 4926 | 42 156 73 1610 242 462 1735 606 Hop . | . . . . . . . . Pick Up 62 | 7 2 1 4 2 14 25 7 Fast Attach 39 | 5 1 . . . 8 19 6 Attach 30 | . 1 . . . 6 13 10 Detach 9 | . . . . . 3 2 4 Swap 50 | . . 1 3 4 10 22 10 Drop 49 | . . 2 5 4 9 19 10 Fire 169 | . 1 . 6 19 43 88 12 Melee 44 | . . . . . . 37 7 Ram . | . . . . . . . . Kick 3 | . . . . . . 3 . Crush . | . . . . . . . . Escape Stasis . | . . . . . . . . Rewire 2 | . . . 2 . . . . Trap . | . . . . . . . . Miscellaneous . | . . . . . . . . Route ------- -11/Scrapyard -10/Materials (discovered 3 exits: [*Mat] / *Min x2) -10/Mines (discovered 2 exits: [*Mat] / *Exi) -10/Exiles (discovered 2 exits: [*Min x2]) -9/Mines -8/Materials -7/Factory -7/Lower Caves History --------- Turn | Location | Event 2 | -11/Scrapyard | Met Revision 17 21 | -11/Scrapyard | Discovered new exit (range 15) 63 | -11/Scrapyard | Entered Materials 88 | -10/Materials | Identified exit to Mines 210 | -10/Materials | Met 8R-AWN 220 | -10/Materials | Discovered new exit (range 16) 258 | -10/Materials | Entered Mines 260 | -10/Mines | Followed 8R-AWN into the Mines 280 | -10/Mines | Discovered new exit (range 10) 328 | -10/Mines | Build established: Mutant 347 | -10/Mines | Discovered new exit (range 5) 352 | -10/Mines | Entered Exiles 374 | -10/Exiles | Discovered new exit (range 15) 408 | -10/Exiles | Welcomed by 8R-AWN 429 | -10/Exiles | Met EX-HEX 512 | -10/Exiles | Met EX-DEC 603 | -10/Exiles | Learned location of Zion (-7) 660 | -10/Exiles | Discovered new exit (range 10) 780 | -10/Exiles | Visited The Gauntlet 970 | -10/Exiles | Met EX-BIN 1350 | -10/Exiles | Aligned with FarCom system 1352 | -10/Exiles | Given EX-Vault access code 2088 | -10/Exiles | Opened EX-Vault 2098 | -10/Exiles | Found Potential Leg 2101 | -10/Exiles | Found Potential Leg 2125 | -10/Exiles | Warned to stay clear of 0b10 Research branches 2262 | -10/Exiles | Left Exiles lab with Potential Leg 2262 | -10/Exiles | Entered Mines 2519 | -9/Mines | Discovered new exit (range 17) 2544 | -9/Mines | Entered Materials 2544 | -8/Materials | Evolved 4 slots: Propulsion x2, Utility x2 2983 | -8/Materials | Repaired Lgt. Nuclear Core+ 3260 | -8/Materials | Discovered new exit (range 16) 3275 | -8/Materials | Entered Factory 3275 | -7/Factory | Evolved 2 slots: Utility x2 3600 | -7/Factory | Noticed a derelict Sapper rigging charges 3746 | -7/Factory | Build established: Scavenger-Skirmisher 4172 | -7/Factory | Build established: Hacker-Skirmisher 4413 | -7/Factory | Repaired Aluminum Leg+ 4440 | -7/Factory | Repaired Aluminum Leg+ 4530 | -7/Factory | Cargo convoy interrupted 4587 | -7/Factory | Build established: Hacker-Mutant 4637 | -7/Factory | Repaired Aluminum Leg+ 4676 | -7/Factory | Repaired Hvy. Armor Plating 4995 | -7/Factory | Fabricated Imp. Transmission Jammer (x2) 5131 | -7/Factory | Lost 3 parts (1p2u) 5174 | -7/Factory | Lost 3 parts (1p2u) 5224 | -7/Factory | System corruption reached 10% 5261 | -7/Factory | Lost 3 parts (1n2u) 5396 | -7/Factory | Lost 3 parts (1n1u1w) 5553 | -7/Factory | Build established: Scavenger-Mutant 5561 | -7/Factory | Fabricated Lgt. Armor Plating? 6010 | -7/Factory | Build established: Scavenger-Skirmisher 6055 | -7/Factory | Core integrity fell below 50% 6094 | -7/Factory | Discovered new exit (range 14) 6114 | -7/Factory | Identified exit to Lower Caves 6117 | -7/Factory | Entered Lower Caves 6126 | -7/Lower Caves | Core integrity fell below 20% 6173 | -7/Lower Caves | Lost 8 parts (2n4u2w) 6375 | -7/Lower Caves | Attracted the attention of an 0b10 outpost 6566 | -7/Lower Caves | Attracted the attention of an 0b10 checkpoint 6576 | -7/Lower Caves | Destroyed self with Heavy Rocket Launcher Last Messages --------------- 06510_ Jacked NF-9AG(r)... 06519_ 9NFNW%90>AVAQQ43V,|/RR 06547_ Searching scrap... 06547_ Found Imp. EM Pulse Cannon. 06547_ Found Unknown Protection. 06547_ Found 59 Matter. 06549_ Acquired derelict log, extracted data. World map updated: -7/Factory. 06553_ System corrupted: Substantial component data lost. 06559_ Discarded Corruption Screen. 06562_ Discarded Imp. Signal Interpreter. 06562_ Acquired Unknown Protection. 06562_ Identified Mak. Weapon Shielding. 06566_ Y-54 Guardian: "INTERCEPTING UNREGISTERED DERELICT." 06572_ System corrupted: Heat flow error (+273). 06572_ VTOL Module destroyed. 06572_ Destroyed VTOL Module. 06573_ Lgt. Angular Momentum Engine destroyed. Map ----- +----------------------------------------------------+ | ???????????????????????????????????????????# | | ???????????????????????????????????????????# | | ???????????????????????????????????????????# #### | | ???????????????????????????????????????????# #??? | | ???????????????????????????????????????????# ##?? | | ??????????????????????????????????????????## ##? | | ?????????????????????????????????????????## ## | | ?????????????????????????????????#???##??# # | | ????????????????????????????????## ### #?## # | | ????????????????????????????????# #?## # | | ????????????????????????????????# #?### | | ?????????????????????????######?# #### | | ????????????????????????? #?# | | ???????????????????????? ## # | | ???????????????????????? ?# ## #### | | ???????????????????????? ??#### ????## ##??? | | ??????????????????????? ??????????????# #???? | | ??????????????????????? ???????????????# #???? | | ?????????????????????## ????########????# #???? | | ???????????# ????##### #?#???# ###### ###?? | | ??????????## ### ### ??## ! ! # ##? | | ??????????# #?## % #? | | ????? % ## ######## #? | | ????? #### ## ## ## #? | | ?????????????????# Y % #? | | ??????????????????# @] ### ##? | | ??????????????????# # ##?# ##?? | | ??????????????????# #####?# ### | | ??????????????????# ### #???# ## | | ??????????????????### #???????# | | ????????????????????# #???????# ## | | ????????????????????# ???????#* ##?? | | ???????????????????? ???????#%% ## #??? | | ???????????????????? ??????# # ### ? | | ???????????????????? ??????# ## #?## # | | ???????????????????? ?????# ### #???# # | | ??????????????????? #?????# #?# ##??? ## | | ??????????????????? #?????#% #?## #??? ##? | | ??????????????????? #?????# %#??## %% #???##?? | | ??????????????????? #?????# #???###% #??????? | | ?????????????????? #?????# #???## %#??????? | | ??????????????????### #?????# %#####% ##?????? | | ?????????????????????# ???### #?????? | | ??????????????????????# ?### % % #?????? | | ???????????????????????#?## ######### #?????? | | ?????????????????????????# % %% % ##????? | | ???????????????????????### % % ##???? | | ???????????????????????#% % ######## #???? | | ???????????????????????##%%#####??????# #???? | | ????????????????????????####??????????### ###???? | +----------------------------------------------------+ Best States ------------- Heat Dissipation 67 Energy Generation 18 Energy Capacity 290 Matter Stores 300 Matter Capacity 300 Sight Range 18 Robot Scan Range 15 Terrain Scan Range 16 Terrain Scan Density 210 ECM Strength 1 Jamming Range 14 Additional Mass Support 9 Corruption Block 8 Armor Coverage 825 Utility Shielding 66 Weapon Shielding 15 Weapon Cycling 15 Evasion (%) 63 Targeting Accuracy 8 Matter Filtering 30 Offensive Hacking 10 Defensive Hacking 10 Item Schematics ----------------- Lgt. Armor Plating | -8/Materials | Scanalyzed Imp. Medium Laser | -8/Materials | Scanalyzed Robot Schematics ------------------ None Fabricated ------------ Imp. Transmission Jammer | x2 | -7/Factory | Preloaded Lgt. Armor Plating | x2 | -7/Factory Repaired ---------- Lgt. Nuclear Core | 30% | -8/Materials Aluminum Leg | 32% | -7/Factory Aluminum Leg | 74% | -7/Factory Aluminum Leg | 6% | -7/Factory Hvy. Armor Plating | 49% | -7/Factory Studied --------- Flak Cannon | -8/Materials | Hacked Lgt. Nuclear Core | -8/Materials | Hacked Aluminum Leg | -8/Materials | Hacked Lgt. Assault Rifle | -8/Materials | Hacked Datajack | -8/Materials | Hacked Adv. Treads | -8/Materials | Hacked Alien Tech Used ----------------- None Achievements -------------- Follow The Leader I Spy Just What I Needed Omniscient Cartographer Sixth Sense Sprinter That Tickles Tourist You Again Challenges ------------ None Game ------ Seed LinearComponentSword Manual? 0 Play Time 01:34:30 Cumulative 7.9 hours Start 2026.07.25 @ 09:32:49 End 2026.07.25 @ 11:08:40 Sessions 1 Manual Loads 0 Difficulty Rogue Special Mode None Game No. 9 Rogue 9 Adventurer 0 Explorer 0 Win Type - Total 0 Types 0/0/0/0/0/0/0/0/0/0 Lore% 7 Gallery% 13 Achievement% 12 Wizard Run 0 Options --------- Layout 1 ASCII 0 Keyboard 0 Movement Mouse Keybinds 1 Fullscreen 1 Font 24/Smallcaps Map View 50x35 Zoom Use 0% Tactical HUD 1 Map Filters NONE Filters NONE Steam 1 RUN: a567cb94-3429-4575-9e24-fc17d1c1248e